fUST/lending_fUST_20240324
["ID","MTS","AMOUNT","RATE_DAILY","PERIOD"]
[320306231,1711282238794,-665.60142816,0.00021915,2]
[320306250,1711282241859,-1336.71065152,0.00021915,2]
[320306251,1711282241869,-230.92476325,0.00021915,2]
[320306252,1711282241878,-685.47138469,0.00021915,2]
[320306253,1711282241887,-2040.67598641,0.00021915,2]
[320306254,1711282241897,-1353.606941,0.00021915,2]
[320306255,1711282241906,-304.78785734,0.00021915,2]
[320306256,1711282241916,-298.6041241,0.00021916,2]
[320306257,1711282241925,-166.3935119,0.00021916,2]
[320306258,1711282241934,-806.13569249,0.00021916,2]
[320306259,1711282241943,-379.76235034,0.00021916,2]
[320306260,1711282241952,-500.0,0.00021917,2]
[320306261,1711282241961,-261.10942718,0.00021917,2]
[320306262,1711282241972,-759.49,0.00021917,2]
[320306263,1711282241981,-500.0,0.00021917,2]
[320306264,1711282241991,-500.0,0.00021917,2]
[320306265,1711282242000,-500.0,0.00021917,2]
[320306266,1711282242009,-500.0,0.00021917,2]
[320306267,1711282242018,-385.855714,0.00021917,2]
[320306268,1711282242027,-500.0,0.00021917,2]
[320306269,1711282242036,-575.87,0.00021917,2]
[320306270,1711282242045,-500.0,0.00021917,2]
[320306271,1711282242054,-500.0,0.00021917,2]
[320306272,1711282242063,-499.14465741,0.00021917,2]
[320306273,1711282242073,-502.82729896,0.00021917,2]
[320306274,1711282242082,-500.0,0.00021917,2]
[320306275,1711282242092,-500.0,0.00021917,2]
[320306276,1711282242101,-500.0,0.00021917,2]
[320306277,1711282242110,-500.0,0.00021917,2]
[320306278,1711282242120,-500.0,0.00021917,2]
[320306279,1711282242129,-500.0,0.00021917,2]
[320306280,1711282242138,-500.0,0.00021917,2]
[320306281,1711282242148,-500.0,0.00021917,2]
[320306282,1711282242157,-500.0,0.00021917,2]
[320306283,1711282242167,-500.0,0.00021917,2]
[320306284,1711282242177,-500.0,0.00021917,2]
[320306285,1711282242186,-500.0,0.00021917,2]
[320306286,1711282242196,-500.0,0.00021917,2]
[320306287,1711282242205,-500.0,0.00021917,2]
[320306288,1711282242215,-500.0,0.00021917,2]
[320306289,1711282242224,-500.0,0.00021917,2]
[320306290,1711282242234,-500.0,0.00021917,2]
[320306291,1711282242242,-158.50350246,0.00021917,2]
[320306292,1711282242255,-341.49649754,0.00021917,2]
[320306293,1711282242263,-500.0,0.00021917,2]
[320306294,1711282242272,-502.53632239,0.00021917,2]
[320306295,1711282242281,-571.40481334,0.00021917,2]
[320306296,1711282242290,-500.0,0.00021917,2]
[320306297,1711282242299,-504.45265312,0.00021917,2]
[320306298,1711282242308,-500.0,0.00021917,2]
[320306299,1711282242317,-500.0,0.00021917,2]
[320306300,1711282242327,-500.0,0.00021917,2]
[320306301,1711282242336,-503.45673578,0.00021917,30]
[320306302,1711282242345,-500.0,0.00021917,2]
[320306303,1711282242354,-500.0,0.00021917,2]
[320306304,1711282242363,-504.42307242,0.00021917,2]
[320306305,1711282242372,-500.0,0.00021917,2]
[320306306,1711282242382,-500.0,0.00021917,2]
[320306307,1711282242391,-500.0,0.00021917,2]
[320306308,1711282242400,-503.05264948,0.00021917,2]
[320306309,1711282242409,-500.0,0.00021917,2]
[320306310,1711282242418,-504.76696991,0.00021917,2]
[320306311,1711282242427,-500.0,0.00021917,2]
[320306312,1711282242436,-500.0,0.00021917,2]
[320306313,1711282242445,-500.0,0.00021917,2]
[320306314,1711282242454,-500.0,0.00021917,2]
[320306315,1711282242463,-500.0,0.00021917,2]
[320306316,1711282242475,-500.0,0.00021917,2]
[320306317,1711282242484,-500.0,0.00021917,2]
[320306318,1711282242493,-500.0,0.00021917,2]
[320306319,1711282242502,-500.0,0.00021917,2]
[320306320,1711282242511,-500.0,0.00021917,2]
[320306321,1711282242520,-500.0,0.00021917,2]
[320306322,1711282242529,-501.1663397,0.00021917,2]
[320306323,1711282242539,-161.19009587,0.00021917,2]
[320306324,1711282242548,-500.0,0.00021917,2]
[320306325,1711282242557,-500.0,0.00021917,2]
[320306326,1711282242566,-513.60848751,0.00021917,2]
[320306327,1711282242575,-500.0,0.00021917,2]
[320306328,1711282242585,-500.0,0.00021917,2]
[320306329,1711282242594,-500.0,0.00021917,2]
[320306330,1711282242603,-500.0,0.00021917,2]
[320306331,1711282242613,-500.0,0.00021917,2]
[320306332,1711282242622,-500.0,0.00021917,2]
[320306333,1711282242736,-500.0,0.00021917,2]
[320306334,1711282242746,-500.0,0.00021917,2]
[320306335,1711282242756,-500.0,0.00021917,2]
[320306336,1711282242766,-500.0,0.00021917,2]
[320306337,1711282242775,-355.95286191,0.00021917,2]
[320306338,1711282242784,-500.0,0.00021917,2]
[320306339,1711282242794,-500.0,0.00021917,2]
[320306340,1711282242803,-500.0,0.00021917,2]
[320306341,1711282242813,-1017.21,0.00021917,2]
[320306342,1711282242823,-310.32741873,0.00021917,2]
[320306343,1711282242832,-500.80025417,0.00021917,2]
[320306344,1711282242841,-465.92615469,0.00021917,2]
[320306345,1711282242851,-500.0,0.00021917,2]
[320306346,1711282242860,-500.0,0.00021917,2]
[320306348,1711282242870,-885.57,0.00021917,2]
[320306350,1711282242880,-198.66254847,0.00021917,2]
[320306352,1711282242889,-179.73360365,0.00021917,2]
[320306354,1711282242899,-500.0,0.00021917,2]
[320306356,1711282242908,-500.0,0.00021917,2]
[320306358,1711282242918,-500.0,0.00021917,2]
[320306361,1711282242928,-500.0,0.00021917,2]
[320306362,1711282242939,-500.0,0.00021917,2]
[320306365,1711282242949,-500.0,0.00021917,2]
[320306367,1711282242960,-500.0,0.00021917,2]
[320306368,1711282242971,-500.0,0.00021917,2]
[320306370,1711282242981,-151.661497,0.00021917,2]
[320306373,1711282242991,-554.48107959,0.00021917,2]
[320306375,1711282243001,-500.0,0.00021917,2]
[320306378,1711282243010,-500.0,0.00021917,2]
[320306381,1711282243019,-500.0,0.00021917,2]
[320306384,1711282243028,-500.0,0.00021917,2]
[320306386,1711282243037,-500.0,0.00021917,2]
[320306389,1711282243046,-503.11482721,0.00021917,2]
[320306392,1711282243055,-500.0,0.00021917,2]
[320306394,1711282243064,-500.0,0.00021917,2]
[320306396,1711282243073,-500.0,0.00021917,2]
[320306398,1711282243083,-504.94596385,0.00021917,2]
[320306400,1711282243092,-510.86186813,0.00021917,2]
[320306402,1711282243102,-500.0,0.00021917,2]
[320306404,1711282243111,-500.0,0.00021917,2]
[320306406,1711282243120,-500.0,0.00021917,2]
[320306408,1711282243129,-500.0,0.00021917,2]
[320306410,1711282243139,-502.68578755,0.00021917,2]
[320306412,1711282243148,-501.1481208,0.00021917,2]
[320306414,1711282243159,-500.0,0.00021917,2]
[320306416,1711282243168,-500.0,0.00021917,2]
[320306418,1711282243177,-500.0,0.00021917,2]
[320306420,1711282243186,-500.0,0.00021917,2]
[320306422,1711282243195,-504.99892821,0.00021917,2]
[320306424,1711282243204,-646.55665611,0.00021917,2]
[320306426,1711282243213,-500.0,0.00021917,2]
[320306428,1711282243224,-500.0,0.00021917,2]
[320306430,1711282243234,-500.0,0.00021917,2]
[320306432,1711282243242,-500.0,0.00021917,2]
[320306434,1711282243251,-507.61236674,0.00021917,2]
[320306436,1711282243260,-502.83083714,0.00021917,2]
[320306438,1711282243269,-500.0,0.00021917,2]
[320306440,1711282243278,-500.0,0.00021917,2]
[320306442,1711282243287,-500.90329408,0.00021917,2]
[320306444,1711282243296,-500.0,0.00021917,2]
[320306446,1711282243305,-500.0,0.00021917,2]
[320306448,1711282243315,-501.5230851,0.00021917,2]
[320306451,1711282243325,-500.0,0.00021917,2]
[320306453,1711282243334,-500.0,0.00021917,2]
[320306454,1711282243343,-503.53302898,0.00021917,2]
[320306456,1711282243352,-151.0,0.00021917,2]
[320306459,1711282243361,-151.0,0.00021917,2]
[320306460,1711282243370,-500.0,0.00021917,2]
[320306462,1711282243379,-151.0,0.00021917,2]
[320306464,1711282243388,-151.0,0.00021917,2]
[320306466,1711282243397,-500.0,0.00021917,2]
[320306468,1711282243406,-500.0,0.00021917,2]
[320306470,1711282243415,-500.0,0.00021917,2]
[320306472,1711282243425,-500.47128142,0.00021917,2]
[320306474,1711282243434,-501.28242064,0.00021917,2]
[320306476,1711282243443,-500.0,0.00021917,2]
[320306478,1711282243452,-259.52139522,0.00021917,2]
[320306480,1711282243463,-500.0,0.00021917,2]
[320306483,1711282243473,-500.0,0.00021917,2]
[320306484,1711282243482,-151.0,0.00021917,2]
[320306486,1711282243491,-151.0,0.00021917,2]
[320306488,1711282243500,-500.0,0.00021917,2]
[320306490,1711282243509,-500.0,0.00021917,2]
[320306492,1711282243518,-500.0,0.00021917,2]
[320306494,1711282243527,-500.0,0.00021917,2]
[320306496,1711282243536,-500.0,0.00021917,2]
[320306498,1711282243546,-500.0,0.00021917,2]
[320306500,1711282243555,-500.0,0.00021917,2]
[320306503,1711282243565,-503.55845917,0.00021917,2]
[320306504,1711282243576,-501.52453578,0.00021917,2]
[320306506,1711282243585,-500.0,0.00021917,2]
[320306508,1711282243595,-500.0,0.00021917,2]
[320306510,1711282243604,-500.87410191,0.00021917,2]
[320306512,1711282243614,-501.68993117,0.00021917,2]
[320306515,1711282243623,-503.34503174,0.00021917,2]
[320306517,1711282243632,-796.93,0.00021917,2]
[320306518,1711282243641,-500.0,0.00021917,2]
[320306520,1711282243650,-506.54556422,0.00021917,2]
[320306523,1711282243660,-500.45649525,0.00021917,2]
[320306525,1711282243669,-500.0,0.00021917,2]
[320306526,1711282243679,-500.0,0.00021917,2]
[320306528,1711282243688,-500.0,0.00021917,2]
[320306530,1711282243701,-500.0,0.00021917,2]
[320306532,1711282243710,-500.0,0.00021917,2]
[320306534,1711282243719,-502.39036141,0.00021917,2]
[320306536,1711282243730,-500.0,0.00021917,2]
[320306538,1711282243738,-154.365328,0.00021917,2]
[320306540,1711282243747,-154.365328,0.00021917,2]
[320306542,1711282243756,-500.0,0.00021917,2]
[320306544,1711282243766,-154.365328,0.00021917,2]
[320306546,1711282243775,-154.365328,0.00021917,2]
[320306548,1711282243785,-500.0,0.00021917,2]
[320306550,1711282243794,-500.37493577,0.00021917,2]
[320306552,1711282243803,-640.42,0.00021917,2]
[320306554,1711282243813,-500.0,0.00021917,2]
[320306556,1711282243823,-580.58554407,0.00021917,2]
[320306558,1711282243832,-501.27705777,0.00021917,2]
[320306560,1711282243842,-500.85805219,0.00021917,2]
[320306562,1711282243852,-500.0,0.00021917,2]
[320306564,1711282243863,-500.0,0.00021917,2]
[320306566,1711282243872,-929.2,0.00021917,2]
[320306568,1711282243881,-502.57409045,0.00021917,2]
[320306570,1711282243890,-502.13416177,0.00021917,2]
[320306572,1711282243899,-500.0,0.00021917,2]
[320306574,1711282243911,-360.31688001,0.00021917,2]
[320306576,1711282243919,-500.0,0.00021917,2]
[320306578,1711282243928,-500.0,0.00021917,2]
[320306580,1711282243937,-482.66387018,0.00021917,2]
[320306582,1711282243947,-1001.96,0.00021917,2]
[320306584,1711282243956,-500.0,0.00021917,2]
[320306586,1711282243965,-500.0,0.00021917,2]
[320306588,1711282243975,-502.91957853,0.00021917,2]
[320306590,1711282243984,-500.0,0.00021917,2]
[320306592,1711282243993,-151.0,0.00021917,2]
[320306593,1711282244002,-803.87,0.00021917,2]
[320306595,1711282244012,-500.0,0.00021917,2]
[320306597,1711282244021,-500.0,0.00021917,2]
[320306599,1711282244030,-500.0,0.00021917,2]
[320306601,1711282244039,-502.36444325,0.00021917,2]
[320306603,1711282244049,-500.0,0.00021917,2]
[320306605,1711282244057,-503.35081131,0.00021917,2]
[320306607,1711282244066,-9247.05,0.00021917,2]
[320306609,1711282244075,-500.0,0.00021917,2]
[320306611,1711282244084,-873.800889,0.00021917,2]
[320306613,1711282244093,-873.800889,0.00021917,2]
[320306615,1711282244103,-873.800889,0.00021917,2]
[320306617,1711282244112,-500.0,0.00021917,2]
[320306619,1711282244121,-873.800889,0.00021917,2]
[320306621,1711282244130,-501.10836594,0.00021917,2]
[320306623,1711282244139,-500.0,0.00021917,2]
[320306625,1711282244148,-500.0,0.00021917,2]
[320306627,1711282244157,-501.31456932,0.00021917,2]
[320306629,1711282244167,-500.0,0.00021917,2]
[320306631,1711282244176,-500.0,0.00021917,2]
[320306633,1711282244185,-500.0,0.00021917,2]
[320306635,1711282244194,-503.00710138,0.00021917,2]
[320306637,1711282244203,-502.31015407,0.00021917,2]
[320306639,1711282244213,-500.0,0.00021917,2]
[320306641,1711282244224,-500.0,0.00021917,2]
[320306643,1711282244233,-570.22,0.00021917,2]
[320306645,1711282244243,-666.09,0.00021917,2]
[320306648,1711282244253,-500.0,0.00021917,2]
[320306650,1711282244263,-163.322975,0.00021917,2]
[320306651,1711282244272,-163.322975,0.00021917,2]
[320306653,1711282244281,-1781.02,0.00021917,2]
[320306655,1711282244291,-163.322975,0.00021917,2]
[320306657,1711282244301,-163.322975,0.00021917,2]
[320306659,1711282244310,-500.0,0.00021917,2]
[320306661,1711282244319,-500.0,0.00021917,2]
[320306663,1711282244328,-2162.65,0.00021917,2]
[320306665,1711282244337,-500.0,0.00021917,2]
[320306667,1711282244346,-500.0,0.00021917,2]
[320306669,1711282244355,-7562.23,0.00021917,2]
[320306671,1711282244365,-501.41929343,0.00021917,2]
[320306673,1711282244375,-503.74,0.00021917,2]
[320306675,1711282244384,-500.0,0.00021917,2]
[320306677,1711282244393,-825.24,0.00021917,2]
[320306679,1711282244403,-679.35,0.00021917,2]
[320306681,1711282244412,-500.0,0.00021917,2]
[320306683,1711282244421,-500.0,0.00021917,2]
[320306685,1711282244430,-503.92873302,0.00021917,2]
[320306687,1711282244439,-500.51053719,0.00021917,2]
[320306689,1711282244448,-1063.63,0.00021917,2]
[320306691,1711282244457,-2450.31,0.00021917,2]
[320306693,1711282244465,-502.63585611,0.00021917,2]
[320306695,1711282244476,-503.63670818,0.00021917,2]
[320306697,1711282244485,-500.0,0.00021917,2]
[320306699,1711282244493,-500.8366974,0.00021917,2]
[320306701,1711282244502,-500.0,0.00021917,2]
[320306703,1711282244512,-766.06,0.00021917,2]
[320306705,1711282244520,-501.22209148,0.00021917,2]
[320306707,1711282244530,-500.0,0.00021917,2]
[320306709,1711282244539,-151.0,0.00021917,2]
[320306711,1711282244548,-151.0,0.00021917,2]
[320306713,1711282244557,-500.0,0.00021917,2]
[320306715,1711282244566,-515.18,0.00021917,2]
[320306717,1711282244575,-500.0,0.00021917,2]
[320306719,1711282244584,-501.72093903,0.00021917,2]
[320306721,1711282244593,-500.0,0.00021917,2]
[320306723,1711282244602,-500.76444318,0.00021917,2]
[320306725,1711282244611,-500.0,0.00021917,2]
[320306727,1711282244620,-500.0,0.00021917,2]
[320306729,1711282244629,-500.0,0.00021917,2]
[320306731,1711282244638,-502.85017531,0.00021917,2]
[320306733,1711282244646,-512.03691836,0.00021917,2]
[320306735,1711282244655,-500.0,0.00021917,2]
[320306737,1711282244665,-151.994254,0.00021917,2]
[320306739,1711282244674,-500.0,0.00021917,2]
[320306741,1711282244683,-808.02,0.00021917,2]
[320306743,1711282244694,-222.612941,0.00021917,2]
[320306745,1711282244703,-500.0,0.00021917,2]
[320306747,1711282244712,-500.0,0.00021917,2]
[320306749,1711282244721,-502.0537624,0.00021917,2]
[320306751,1711282244731,-500.0,0.00021917,2]
[320306753,1711282244740,-9867.26,0.00021917,2]
[320306755,1711282244756,-500.0,0.00021917,2]
[320306757,1711282244814,-502.81102058,0.00021917,2]
[320306759,1711282244827,-500.0,0.00021917,2]
[320306761,1711282244839,-659.87,0.00021917,2]
[320306763,1711282244848,-500.0,0.00021917,2]
[320306766,1711282244858,-500.0,0.00021917,2]
[320306767,1711282244867,-500.0,0.00021917,2]
[320306769,1711282244877,-1490.85,0.00021917,2]
[320306771,1711282244886,-500.0,0.00021917,2]
[320306773,1711282244897,-1805.17,0.00021917,2]
[320306775,1711282244906,-500.0,0.00021917,2]
[320306777,1711282244916,-527.10070021,0.00021917,2]
[320306779,1711282244925,-500.0,0.00021917,2]
[320306781,1711282244934,-446.98736684,0.00021917,2]
[320306783,1711282244943,-501.85363474,0.00021917,2]
[320306785,1711282244954,-500.0,0.00021917,2]
[320306787,1711282244963,-500.0,0.00021917,2]
[320306789,1711282244973,-500.51950011,0.00021917,2]
[320306791,1711282244983,-500.0,0.00021917,2]
[320306793,1711282244994,-500.0,0.00021917,2]
[320306795,1711282245003,-151.0,0.00021917,2]
[320306797,1711282245013,-151.0,0.00021917,2]
[320306799,1711282245023,-614.1,0.00021917,2]
[320306801,1711282245033,-500.0,0.00021917,2]
[320306803,1711282245042,-500.0,0.00021917,2]
[320306805,1711282245051,-501.59799803,0.00021917,2]
[320306807,1711282245060,-501.94860738,0.00021917,2]
[320306809,1711282245070,-560.64546208,0.00021917,2]
[320306811,1711282245079,-245.64616664,0.00021917,2]
[320306813,1711282245089,-500.0,0.00021917,2]
[320306816,1711282245098,-502.24272086,0.00021917,2]
[320306817,1711282245107,-500.9976482,0.00021917,2]
[320306820,1711282245117,-500.0,0.00021917,2]
[320306821,1711282245127,-500.0,0.00021917,2]
[320306823,1711282245136,-151.0,0.00021917,2]
[320306825,1711282245147,-151.0,0.00021917,2]
[320306827,1711282245156,-515.45315816,0.00021917,2]
[320306829,1711282245166,-1725.88,0.00021917,2]
[320306831,1711282245175,-500.0,0.00021917,2]
[320306834,1711282245186,-605.3,0.00021917,2]
[320306836,1711282245197,-500.0,0.00021917,2]
[320306837,1711282245206,-500.0,0.00021917,2]
[320306840,1711282245216,-603.70308766,0.00021917,2]
[320306842,1711282245227,-360.01753707,0.00021917,2]
[320306844,1711282245238,-500.0,0.00021917,2]
[320306845,1711282245248,-4388.18,0.00021917,2]
[320306847,1711282245258,-500.0,0.00021917,2]
[320306858,1711282245353,-530.27624735,0.00021917,2]
[320306860,1711282245363,-500.0,0.00021917,2]
[320306862,1711282245372,-500.0,0.00021917,2]
[320306864,1711282245381,-507.18876177,0.00021917,2]
[320306866,1711282245391,-151.0,0.00021917,2]
[320306868,1711282245400,-153.7937,0.00021917,2]
[320306870,1711282245409,-503.52241592,0.00021917,2]
[320306872,1711282245419,-500.0,0.00021917,2]
[320306874,1711282245428,-500.69179617,0.00021917,2]
[320306876,1711282245438,-500.0,0.00021917,2]
[320306878,1711282245448,-500.0,0.00021917,2]
[320306880,1711282245458,-500.0,0.00021917,2]
[320306882,1711282245468,-1860.05,0.00021917,2]
[320306884,1711282245480,-1860.05,0.00021917,2]
[320306886,1711282245490,-1860.05,0.00021917,2]
[320306888,1711282245499,-1860.05,0.00021917,2]
[320306890,1711282245509,-1094.02,0.00021917,2]
[320306892,1711282245519,-500.0,0.00021917,2]
[320306894,1711282245528,-502.32874759,0.00021917,2]
[320306896,1711282245538,-1860.05,0.00021917,2]
[320306898,1711282245548,-1860.05,0.00021917,2]
[320306900,1711282245557,-1860.05,0.00021917,2]
[320306902,1711282245567,-1860.05,0.00021917,2]
[320306904,1711282245577,-500.0,0.00021917,2]
[320306906,1711282245588,-52075.5297205,0.00021918,2]
[320306908,1711282245597,-166.666666,0.00021918,2]
[320306910,1711282245606,-201.8047941,0.00021918,2]
[320306912,1711282245615,-151.0,0.00021918,2]
[320306914,1711282245624,-255.688672,0.00021918,2]
[320306916,1711282245633,-151.0,0.00021918,2]
[320306918,1711282245642,-154.365328,0.00021918,2]
[320306920,1711282245651,-154.365328,0.00021918,2]
[320306922,1711282245659,-873.800889,0.00021918,2]
[320306924,1711282245669,-873.800889,0.00021918,2]
[320306925,1711282245678,-163.322975,0.00021918,2]
[320306927,1711282245690,-163.322975,0.00021918,2]
[320306929,1711282245700,-151.0,0.00021918,2]
[320306931,1711282245708,-151.0,0.00021918,2]
[320306933,1711282245718,-250.0,0.00021999,14]
[320306935,1711282245728,-1860.05,0.00021999,2]
[320306937,1711282245737,-1860.05,0.00021999,2]
[320306939,1711282245746,-1860.05,0.00021999,2]
[320306941,1711282245754,-1860.05,0.00021999,2]
[320306943,1711282245763,-1860.05,0.00021999,2]
[320306945,1711282245774,-212.61035174,0.00022,2]
[320306947,1711282245783,-25683.00082405,0.00022,2]
[320307059,1711282246743,-886.36,0.00021917,2]
[320307060,1711282246754,-1860.05,0.00021999,2]
[320307062,1711282246764,-1860.05,0.00021999,2]
[320307064,1711282246775,-1860.05,0.00021999,2]
[320307066,1711282246787,-1860.05,0.00021999,2]
[320307068,1711282246797,-1860.05,0.00021999,2]
[320307070,1711282246807,-1860.05,0.00021999,2]
[320307072,1711282246818,-1860.05,0.00021999,2]
[320307074,1711282246828,-1860.05,0.00021999,2]
[320307077,1711282246838,-1860.05,0.00021999,2]
[320307078,1711282246848,-1860.05,0.00021999,2]
[320307080,1711282246858,-1860.15740897,0.00021999,2]
[320307082,1711282246868,-639734.11004172,0.00022,2]
[320307084,1711282246877,-151.0,0.00022,2]
[320307086,1711282246886,-162.191313,0.00022,2]
[320307088,1711282246896,-154.365328,0.00022,2]
[320307090,1711282246906,-154.365328,0.00022,2]
[320307092,1711282246915,-873.800889,0.00022,2]
[320307094,1711282246924,-873.800889,0.00022,2]
[320307096,1711282246933,-163.322975,0.00022,2]
[320307098,1711282246942,-163.322975,0.00022,2]
[320307100,1711282246950,-151.0,0.00022,2]
[320307102,1711282246960,-2000.0,0.00022062,2]
[320307104,1711282246968,-881.11090006,0.0002217,2]
[320307106,1711282246980,-500.0,0.00022191,2]
[320307108,1711282246989,-759.49,0.00022191,2]
[320307110,1711282246998,-501.33515441,0.00022191,2]
[320307112,1711282247007,-502.47073922,0.00022191,2]
[320307114,1711282247017,-500.0,0.00022191,2]
[320307116,1711282247026,-500.0,0.00022191,2]
[320307118,1711282247037,-500.0,0.00022191,2]
[320307120,1711282247046,-500.0,0.00022191,2]
[320307122,1711282247055,-500.0,0.00022191,2]
[320307124,1711282247065,-500.0,0.00022191,2]
[320307126,1711282247074,-500.0,0.00022191,2]
[320307128,1711282247083,-500.0,0.00022191,2]
[320307130,1711282247092,-500.0,0.00022191,2]
[320307131,1711282247101,-500.0,0.00022191,2]
[320307133,1711282247111,-500.0,0.00022191,2]
[320307135,1711282247121,-502.2482328,0.00022191,2]
[320307137,1711282247131,-500.0,0.00022191,2]
[320307139,1711282247141,-500.0,0.00022191,2]
[320307141,1711282247150,-500.78656217,0.00022191,2]
[320307143,1711282247161,-500.0,0.00022191,2]
[320307145,1711282247170,-500.0,0.00022191,2]
[320307147,1711282247179,-500.78520232,0.00022191,2]
[320307149,1711282247189,-500.0,0.00022191,2]
[320307152,1711282247200,-500.0,0.00022191,2]
[320307153,1711282247211,-501.60684069,0.00022191,2]
[320307155,1711282247222,-500.0,0.00022191,2]
[320307157,1711282247233,-501.23058836,0.00022191,2]
[320307159,1711282247243,-500.0,0.00022191,2]
[320307161,1711282247253,-500.0,0.00022191,2]
[320307163,1711282247262,-501.10557245,0.00022191,2]
[320307165,1711282247273,-467.64757315,0.00022191,2]
[320307167,1711282247282,-500.0,0.00022191,2]
[320307169,1711282247292,-503.52810028,0.00022191,2]
[320307171,1711282247301,-500.7575205,0.00022191,2]
[320307173,1711282247311,-500.0,0.00022191,2]
[320307175,1711282247321,-500.0,0.00022191,2]
[320307177,1711282247331,-500.0,0.00022191,2]
[320307179,1711282247342,-500.0,0.00022191,2]
[320307181,1711282247352,-500.0,0.00022191,2]
[320307183,1711282247363,-501.65333992,0.00022191,2]
[320307185,1711282247373,-501.35870136,0.00022191,2]
[320307187,1711282247383,-501.03338676,0.00022191,2]
[320307189,1711282247393,-500.0,0.00022191,2]
[320307191,1711282247404,-414.83260532,0.00022191,2]
[320307193,1711282247414,-500.0,0.00022191,2]
[320307195,1711282247427,-500.0,0.00022191,2]
[320307197,1711282247438,-500.0,0.00022191,2]
[320307200,1711282247448,-500.0,0.00022191,2]
[320307201,1711282247459,-492.8433971,0.00022191,2]
[320307204,1711282247469,-222.94504091,0.00022191,2]
[320307206,1711282247481,-501.86706236,0.00022191,2]
[320307207,1711282247492,-500.76751389,0.00022191,2]
[320307209,1711282247502,-500.0,0.00022191,2]
[320307211,1711282247512,-500.0,0.00022191,2]
[320307213,1711282247523,-368.72704747,0.00022191,2]
[320307215,1711282247533,-500.0,0.00022191,2]
[320307217,1711282247544,-500.79383506,0.00022191,2]
[320307220,1711282247555,-500.0,0.00022191,2]
[320307221,1711282247564,-500.0,0.00022191,2]
[320307223,1711282247574,-289.01569629,0.00022191,2]
[320307225,1711282247584,-500.0,0.00022191,2]
[320307227,1711282247594,-1017.21,0.00022191,2]
[320307229,1711282247604,-500.0,0.00022191,2]
[320307232,1711282247616,-500.0,0.00022191,2]
[320307234,1711282247627,-885.57,0.00022191,2]
[320307236,1711282247638,-500.0,0.00022191,2]
[320307238,1711282247647,-500.0,0.00022191,2]
[320307240,1711282247656,-500.0,0.00022191,2]
[320307242,1711282247666,-500.0,0.00022191,2]
[320307243,1711282247675,-500.0,0.00022191,2]
[320307245,1711282247686,-500.0,0.00022191,2]
[320307247,1711282247698,-500.0,0.00022191,2]
[320307249,1711282247708,-551.06509477,0.00022191,2]
[320307252,1711282247719,-500.0,0.00022191,2]
[320307253,1711282247730,-460.84159426,0.00022191,2]
[320307255,1711282247742,-500.0,0.00022191,2]
[320307258,1711282247754,-500.0,0.00022191,2]
[320307259,1711282247764,-500.0,0.00022191,2]
[320307261,1711282247776,-500.0,0.00022191,2]
[320307263,1711282247787,-501.79376057,0.00022191,2]
[320307265,1711282247796,-500.0,0.00022191,2]
[320307267,1711282247808,-500.0,0.00022191,2]
[320307269,1711282247818,-500.0,0.00022191,2]
[320307272,1711282247830,-500.0,0.00022191,2]